bitfinex/quotes_SOLUSD_20241210
["timestamp","ask_amount","ask_price","bid_price","bid_amount"]
[1733851955683,14.93449929,205.98,205.89,40.98700247]
[1733851955883,14.93449929,205.95,205.91,40.39801057]
[1733851956079,14.93449929,206.04,205.93,40.39801057]
[1733851956292,14.93449929,206.04,205.98,40.39801057]
[1733851956495,14.93449929,206.06,206.0,40.39801057]
[1733851956666,14.93449929,206.08,206.04,40.39801057]
[1733851956872,14.93449929,206.08,206.06,40.39801057]
[1733851957075,14.93449929,206.11,206.04,40.39801057]
[1733851957289,14.93449929,206.11,206.06,40.39801057]
[1733851957495,14.93449929,206.09,206.06,40.39801057]
[1733851957698,14.93449929,206.09,206.04,41.12570595]
[1733851958004,14.93449929,206.1,206.06,40.39801057]
[1733851958204,14.93449929,206.1,206.05,40.39801057]
[1733851958539,14.93449929,206.11,206.06,40.39801057]
[1733851958677,15.66078808,206.17,206.1,40.39801057]
[1733851958877,14.93449929,206.14,206.1,40.39801057]
[1733851959066,14.93449929,206.14,206.09,40.39801057]
[1733851959267,0.72628879,206.22,206.05,40.39801057]
[1733851959268,14.93449929,206.09,206.05,40.39801057]
[1733851959491,15.0,206.21,206.0,40.39801057]
[1733851959492,14.93449929,206.05,206.0,40.39801057]
[1733851959803,14.93449929,206.02,205.98,40.39801057]
[1733851960175,14.93449929,206.0,205.96,40.39801057]
[1733851960501,14.93449929,206.0,205.98,40.39801057]
[1733851960875,14.93449929,206.0,205.96,40.39801057]
[1733851961077,14.93449929,206.0,205.93,2.61685178]
[1733851961078,14.93449929,206.04,205.98,40.39801057]
[1733851961277,14.93449929,206.0,205.96,40.39801057]
[1733851961481,14.93449929,206.02,205.96,40.39801057]
[1733851961693,14.93449929,206.0,205.96,40.39801057]
[1733851962003,22.95261926,206.09,205.96,40.39801057]
[1733851962220,20.0,206.07,205.93,40.39801057]
[1733851962385,0.12549,206.05,205.91,40.39801057]
[1733851962592,0.12549,206.05,205.92,40.39801057]
[1733851962898,0.12549,206.05,205.97,40.39801057]
[1733851963099,0.72628879,206.11,206.01,40.39801057]
[1733851963308,0.72628879,206.12,206.03,40.39801057]
[1733851963486,2.45688879,206.17,206.03,40.39801057]
[1733851963690,2.96544153,206.12,206.03,40.39801057]
[1733851963991,0.72628879,206.11,205.98,40.39801057]
[1733851964202,15.72628879,206.11,205.95,40.39801057]
[1733851964502,23.76549437,206.17,206.02,15.0]
[1733851964705,2.88573669,206.12,206.04,15.0]
[1733851965001,2.88573669,206.12,206.02,15.0]
[1733851965172,2.88573669,206.12,206.03,21.25843069]
[1733851965592,2.88573669,206.12,206.01,21.25843069]
[1733851965786,2.88573669,206.12,206.03,15.0]
[1733851965983,2.88573669,206.12,206.03,21.25843069]
[1733851965984,0.12549,206.11,206.03,21.25843069]
[1733851966185,2.88573669,206.12,205.92,15.0]
[1733851966186,0.12549,206.08,205.92,15.0]
[1733851966387,0.12549,206.08,205.9,15.0]
[1733851966388,0.12549,206.08,205.94,15.0]
[1733851966673,20.0,206.01,205.89,0.5889919]
[1733851966896,20.12549,206.0,205.89,0.5889919]
[1733851967198,0.12549,205.92,205.89,0.5889919]
[1733851967405,28.74156931,205.93,205.89,0.5889919]
[1733851967581,20.0,205.89,205.75,15.0]
[1733851967773,20.0,205.87,205.75,15.0]
[1733851967973,0.12549,205.86,205.75,15.0]
[1733851968202,0.12549,205.86,205.77,15.0]
[1733851968382,0.12549,205.88,205.77,15.0]
[1733851968578,2.89467904,205.91,205.81,15.0]
[1733851968579,0.12549,205.9,205.81,15.0]
[1733851968807,0.12549,205.9,205.82,6.25843069]
[1733851969879,20.12549,205.9,205.79,21.25843069]
[1733851970576,20.12549,205.9,205.81,6.25843069]
[1733851970783,0.42553494,205.89,205.81,6.25843069]
[1733851971097,0.12549,205.88,205.79,21.25843069]
[1733851971302,2.89467904,205.91,205.81,15.0]
[1733851971608,0.42553494,205.87,205.81,21.25843069]
[1733851972110,0.42553494,205.87,205.85,15.0]
[1733851972279,0.42553494,205.87,205.8,6.25843069]
[1733851972480,0.42553494,205.87,205.82,6.25843069]
[1733851972676,0.42553494,205.87,205.79,6.25843069]
[1733851972880,0.12549,205.86,205.79,6.25843069]
[1733851973109,0.12549,205.87,205.79,6.25843069]
[1733851973299,0.42553494,205.85,205.79,6.25843069]
[1733851973616,0.42553494,205.85,205.84,21.25843069]
[1733851974199,0.42553494,205.85,205.84,6.25843069]
[1733851974378,2.89467904,205.91,205.84,6.25843069]
[1733851974711,20.8604,206.04,205.74,0.72855921]
[1733851974712,8.74156931,206.0,205.86,21.25843069]
[1733851974916,6.3204,206.04,205.91,15.0]
[1733851975223,6.3204,206.04,205.95,21.25843069]
[1733851975224,2.96380476,206.0,205.95,21.25843069]
[1733851975511,0.88718229,206.03,206.01,15.0]
[1733851975694,0.88718229,206.03,206.02,6.25843069]
[1733851976199,2.97488658,206.09,206.03,15.0]
[1733851976397,8.74156931,206.16,206.05,21.25843069]
[1733851976705,0.88718229,206.15,206.08,15.0]
[1733851977009,2.91247841,206.17,206.02,21.25843069]
[1733851977182,11.65404772,206.17,206.02,15.0]
[1733851977381,2.91247841,206.17,206.02,15.0]
[1733851977588,2.91247841,206.17,206.05,15.0]
[1733851977807,2.91247841,206.17,206.09,21.25843069]
[1733851978180,2.91247841,206.17,206.11,21.25843069]
[1733851978379,2.91247841,206.17,206.06,15.0]
[1733851978581,2.91247841,206.17,206.07,6.25843069]
[1733851978885,2.91247841,206.17,206.04,15.0]
[1733851979103,2.91247841,206.17,205.91,30.0]
[1733851979104,8.74156931,206.15,206.0,6.25843069]
[1733851979305,20.0,206.06,205.91,6.25843069]
[1733851979507,20.0,206.02,205.89,6.25843069]
[1733851979711,0.12549,206.01,205.91,0.88804401]
[1733851979888,20.0,205.95,205.91,0.88804401]
[1733851980202,0.12549,205.94,205.91,0.88804401]
[1733851980593,8.61298271,206.09,205.79,21.25843069]
[1733851980594,20.0,205.91,205.79,21.25843069]
[1733851980906,35.15830281,206.08,205.73,40.39801057]
[1733851980907,0.12549,205.87,205.8,15.88851867]
[1733851981078,20.12549,205.87,205.8,0.88851867]
[1733851981282,0.12549,205.82,205.71,6.25843069]
[1733851981477,0.12549,205.82,205.7,15.0]
[1733851981478,20.12549,205.82,205.7,15.0]
[1733851981708,28.86705931,205.82,205.7,15.0]
[1733851982113,0.12549,205.81,205.7,15.0]
[1733851982319,0.12549,205.81,205.69,6.84742259]
[1733851982621,20.0,205.84,205.74,15.0]
[1733851982915,2.89177053,205.86,205.81,21.25843069]
[1733851983086,2.89177053,205.86,205.73,15.0]
[1733851983289,2.89177053,205.86,205.76,15.0]
[1733851983613,2.89177053,205.86,205.75,6.25843069]
[1733851983817,2.89177053,205.86,205.78,6.25843069]
[1733851983988,2.89177053,205.86,205.72,21.25843069]
[1733851984189,0.12549,205.82,205.72,6.25843069]
[1733851984419,20.0,205.81,205.7,21.25843069]
[1733851984625,20.0,205.81,205.72,6.25843069]
[1733851984626,0.12549,205.8,205.72,6.25843069]
[1733851984911,20.0,205.81,205.72,6.25843069]
[1733851985120,20.0,205.81,205.71,15.0]
[1733851985121,20.0,205.83,205.71,15.0]
[1733851985323,20.0,205.81,205.71,21.25843069]
[1733851985698,2.00043108,205.85,205.74,15.0]
[1733851985913,2.89177053,205.86,205.76,15.0]
[1733851986101,2.89177053,205.86,205.75,6.25843069]
[1733851986488,8.74156931,205.85,205.73,6.25843069]
[1733851986703,2.89177053,205.86,205.74,15.0]
[1733851987027,2.89177053,205.86,205.76,21.25843069]
[1733851987189,2.89177053,205.86,205.81,6.25843069]
[1733851988005,8.74156931,205.96,205.83,21.25843069]
[1733851988320,2.94016016,205.88,205.79,15.0]
[1733851988495,8.57185943,206.0,205.87,6.25843069]
[1733851988695,8.57185943,206.0,205.87,21.25843069]
[1733851988894,2.85292977,205.92,205.84,15.0]
[1733851989120,2.85292977,205.92,205.82,21.25843069]
[1733851989328,2.85292977,205.92,205.86,6.25843069]
[1733851989622,1.98985943,206.0,205.9,15.0]
[1733851989822,8.74156931,205.99,205.83,61.65644126]
[1733851990129,2.8733516,205.95,205.82,6.25843069]
[1733851990426,8.74156931,205.92,205.78,6.25843069]
[1733851990601,8.74156931,205.9,205.75,6.25843069]
[1733851990919,20.0,205.87,205.75,21.25843069]
[1733851991124,20.0,205.87,205.75,6.25843069]
[1733851991332,15.23136931,205.89,205.74,21.25843069]
[1733851991494,20.0,205.86,205.76,6.25843069]
[1733851991828,2.8733516,205.95,205.82,15.0]
[1733851992014,2.8733516,205.95,205.86,21.25843069]
[1733851992198,2.94105786,205.96,205.89,6.25843069]
[1733851992398,2.94105786,205.96,205.86,6.25843069]
[1733851993022,2.94105786,205.96,205.86,21.25843069]
[1733851993230,2.94105786,205.96,205.74,15.0]
[1733851993231,2.94105786,205.96,205.88,6.25843069]
[1733851993541,2.94105786,205.96,205.75,0.72859051]
[1733851993542,2.94105786,205.96,205.94,6.25843069]
[1733851993695,8.74156931,206.03,205.9,6.25843069]
[1733851994021,8.74156931,205.95,205.83,6.25843069]
[1733851994231,2.90112395,205.97,205.87,21.25843069]
[1733851994400,2.90112395,205.97,205.89,6.25843069]
[1733851994599,2.90112395,205.97,205.85,21.25843069]
[1733851994813,2.90112395,205.97,205.75,12.1502]
[1733851994814,20.0,205.91,205.79,6.25843069]
[1733851995021,20.0,205.91,205.71,22.30095036]
[1733851995022,8.74156931,205.85,205.72,6.25843069]
[1733851995227,8.74156931,205.9,205.74,21.25843069]
[1733851995399,20.0,205.93,205.74,21.25843069]
[1733851995602,8.74156931,205.92,205.74,15.0]
[1733851995821,34.54,205.93,205.7,6.25843069]
[1733851995822,8.74156931,205.89,205.7,21.25843069]
[1733851996135,8.74156931,205.85,205.7,15.0]
[1733851996506,8.74156931,205.85,205.72,15.0]
[1733851996703,8.74156931,205.85,205.73,6.25843069]
[1733851996913,20.0,205.82,205.72,15.0]
[1733851997121,20.0,205.82,205.75,6.25843069]
[1733851997434,6.0437,205.9,205.75,6.25843069]
[1733851997435,20.0,205.87,205.76,6.25843069]
[1733851997637,2.90353284,205.81,205.73,15.0]
[1733851997829,2.90353284,205.81,205.69,40.98700247]
[1733851997830,2.90353284,205.81,205.75,21.25843069]
[1733851998005,2.90353284,205.81,205.75,6.25843069]
[1733851998329,2.90353284,205.81,205.74,6.25843069]
[1733851998570,8.0634454,205.9,205.78,21.25843069]
[1733851998708,2.0197454,205.9,205.78,6.25843069]
[1733851998906,10.20366931,205.95,205.85,0.08346275]
[1733851999141,1.4621,205.95,205.85,0.08346275]
[1733851999304,2.9575127,205.86,205.85,0.08346275]
[1733852001142,2.9575127,205.86,205.74,15.0]
[1733852001302,2.9575127,205.86,205.72,21.25843069]
[1733852001732,2.9575127,205.86,205.74,6.25843069]
[1733852001936,22.9575127,205.86,205.76,6.25843069]
[1733852002101,2.9575127,205.86,205.78,21.25843069]
[1733852002510,2.9575127,205.86,205.78,6.25843069]
[1733852002712,20.0,205.84,205.73,6.25843069]
[1733852002912,2.9575127,205.86,205.78,6.25843069]
[1733852003128,6.0437,205.97,205.85,6.25843069]
[1733852003129,8.07070297,205.97,205.85,6.25843069]
[1733852003332,2.02700297,205.97,205.87,6.25843069]
[1733852003515,1.4621,206.02,205.87,6.25843069]
[1733852003830,2.85266013,205.91,205.87,6.25843069]
[1733852004023,2.85266013,205.91,205.87,15.0]
[1733852004228,2.85266013,205.91,205.88,6.25843069]
[1733852004427,2.85266013,205.91,205.89,15.0]
[1733852004616,1.4621,206.02,205.78,22.90360024]
[1733852004617,8.74156931,206.01,205.86,6.25843069]
[1733852005025,1.4621,206.02,205.87,15.0]
[1733852005411,2.95563477,205.91,205.86,6.25843069]
[1733852005732,2.95563477,205.91,205.78,6.25843069]
[1733852005908,2.95563477,205.91,205.8,6.25843069]
[1733852006117,20.0,205.9,205.8,6.25843069]
[1733852006334,20.0,205.89,205.76,21.25843069]
[1733852006542,20.0,205.89,205.78,21.25843069]
[1733852006910,20.0,205.89,205.8,6.25843069]
[1733852007240,2.95563477,205.91,205.83,15.0]
[1733852007419,2.95563477,205.91,205.87,6.25843069]
[1733852007617,2.95563477,205.91,205.86,15.0]
[1733852007827,2.95563477,205.91,205.87,6.25843069]
[1733852008008,3.46394563,206.02,205.9,6.25843069]
[1733852008208,2.00184563,206.02,205.92,6.25843069]
[1733852008431,2.96102961,205.95,205.92,6.25843069]
[1733852008631,1.4621,206.1,205.97,21.25843069]
[1733852008920,1.4621,206.1,205.99,6.25843069]
[1733852009228,2.85571615,206.01,205.99,15.0]
[1733852009430,2.85571615,206.01,205.98,6.25843069]
[1733852010011,2.85571615,206.01,205.99,15.0]
[1733852010219,2.85571615,206.01,205.95,21.25843069]
[1733852010413,2.85571615,206.01,205.87,9.00179385]
[1733852010414,2.85571615,206.01,205.89,15.0]
[1733852010638,2.85571615,206.01,205.91,6.25843069]
[1733852010946,2.85571615,206.01,205.92,15.0]
[1733852011377,8.74156931,206.0,205.86,21.25843069]
[1733852011550,20.0,205.97,205.85,15.0]
[1733852011869,20.0,205.97,205.87,15.0]
[1733852012170,2.85571615,206.01,205.79,21.25843069]
[1733852012171,20.0,205.91,205.79,21.25843069]
[1733852012338,20.0,205.91,205.81,15.0]
[1733852012738,14.79146931,205.96,205.81,15.0]
[1733852012739,20.0,205.93,205.81,15.0]
[1733852012934,20.0,205.92,205.83,15.0]
[1733852013139,20.0,205.91,205.79,15.0]
[1733852013372,2.88562369,205.87,205.81,15.0]
[1733852013544,2.88562369,205.87,205.83,15.0]
[1733852013745,2.88562369,205.87,205.82,15.0]
[1733852014065,6.0499,205.96,205.86,15.0]
[1733852014285,6.0499,206.03,205.89,21.25843069]
[1733852014572,6.0499,206.03,205.91,15.0]
[1733852014736,2.85090985,205.96,205.9,15.0]
[1733852014936,14.54,206.09,205.9,15.0]
[1733852015160,8.74156931,206.02,205.9,15.0]
[1733852015370,23.28156931,206.09,205.9,15.0]
[1733852015642,8.74156931,206.05,205.9,21.25843069]
[1733852015946,2.93871543,205.96,205.92,15.0]
[1733852016145,2.93871543,205.96,205.93,6.25843069]
[1733852016360,2.93871543,205.96,205.92,15.0]
[1733852016575,8.03313035,206.1,205.97,15.0]
[1733852016737,2.85330028,206.0,205.95,21.25843069]
[1733852016941,8.03313035,206.1,205.98,15.0]
[1733852017142,8.03313035,206.1,205.97,6.25843069]
[1733852017143,1.98323035,206.1,206.03,15.0]
[1733852017379,6.0499,206.17,206.03,15.0]
[1733852017577,2.90491338,206.08,206.03,15.0]
[1733852017780,6.0499,206.17,206.06,15.0]
[1733852017947,2.05831279,206.17,206.09,6.25843069]
[1733852018145,6.0499,206.25,206.12,15.0]
[1733852018695,2.89995619,206.14,206.12,15.0]
[1733852018898,6.0499,206.25,206.07,40.39801057]
[1733852018899,8.0414132,206.25,206.07,21.25843069]
[1733852019071,2.97256444,206.16,206.03,15.0]
[1733852019271,2.97256444,206.16,206.02,6.25843069]
[1733852019272,8.74156931,206.15,206.02,6.25843069]
[1733852019499,2.97256444,206.16,206.03,15.0]
[1733852020204,2.97256444,206.16,206.06,15.0]
[1733852020383,2.97256444,206.16,206.01,15.0]
[1733852020880,20.0,206.15,206.01,15.0]
[1733852021074,34.54,206.15,206.0,6.25843069]
[1733852021274,20.0,206.08,205.98,15.0]
[1733852021505,34.54,206.08,205.94,6.25843069]
[1733852021707,20.0,206.04,205.91,6.25843069]
[1733852021867,28.74156931,206.04,205.89,6.25843069]
[1733852022070,28.74156931,206.04,205.9,15.0]
[1733852022298,28.74156931,206.04,205.9,21.25843069]
[1733852022501,28.74156931,206.04,205.88,21.25843069]
[1733852022713,20.0,205.98,205.88,15.0]
[1733852022876,20.0,205.98,205.88,6.25843069]
[1733852023078,20.0,205.98,205.85,1.7871]
[1733852023079,20.0,205.98,205.9,21.25843069]
[1733852023397,2.9079796,205.99,205.92,15.0]
[1733852023715,2.9079796,205.99,205.9,6.25843069]
[1733852024000,2.9079796,205.99,205.86,15.0]
[1733852024182,2.9079796,205.99,205.88,15.0]
[1733852024183,20.0,205.97,205.88,15.0]
[1733852024375,20.0,205.97,205.88,21.25843069]
[1733852024577,2.9079796,205.99,205.88,21.25843069]
[1733852024775,2.9079796,205.99,205.93,6.25843069]
[1733852024984,2.9079796,205.99,205.89,6.25843069]
[1733852025185,2.9079796,205.99,205.9,15.0]
[1733852025472,2.9079796,205.99,205.91,6.25843069]
[1733852026409,2.9079796,205.99,205.92,15.0]
[1733852026588,2.9079796,205.99,205.91,6.25843069]
[1733852027106,2.9079796,205.99,205.77,8.1418]
[1733852027107,20.0,205.98,205.86,15.0]
[1733852027310,20.0,205.98,205.88,15.0]
[1733852027700,2.9079796,205.99,205.9,15.0]
[1733852027878,2.9079796,205.99,205.85,15.0]
[1733852028074,2.9079796,205.99,205.9,21.25843069]
[1733852028422,2.9079796,205.99,205.78,27.87732044]
[1733852028423,2.9079796,205.99,205.97,15.0]
[1733852028583,2.9079796,205.99,205.89,40.39801057]
[1733852028584,2.9079796,205.99,205.96,6.25843069]
[1733852028785,2.9079796,205.99,205.97,15.0]
[1733852028996,2.9079796,205.99,205.96,6.25843069]
[1733852029310,2.9079796,205.99,205.92,15.0]
[1733852029930,2.9079796,205.99,205.91,6.25843069]
[1733852030085,2.9079796,205.99,205.88,15.0]
[1733852030279,2.9079796,205.99,205.91,15.0]
[1733852030477,2.9079796,205.99,205.93,15.0]
[1733852030682,2.9079796,205.99,205.97,15.0]
[1733852030993,0.42553191,205.98,205.97,21.25843069]
[1733852031907,0.42553191,205.98,205.97,61.65644126]
[1733852032709,2.0448988,206.13,206.09,6.25843069]
[1733852032878,8.2456,206.23,206.1,15.0]
[1733852033301,2.84889641,206.11,206.06,15.0]
[1733852033715,2.84889641,206.11,206.02,15.0]
[1733852034407,2.84889641,206.11,206.01,6.25843069]
[1733852035343,20.0,206.09,205.98,15.0]
[1733852035833,2.84889641,206.11,205.99,15.0]
[1733852036041,2.84889641,206.11,206.01,21.25843069]
[1733852036754,2.84889641,206.11,206.06,6.25843069]
[1733852037425,2.84889641,206.11,206.09,21.25843069]
[1733852037607,2.84889641,206.11,206.09,15.0]
[1733852037811,10.26264559,206.23,206.13,15.0]
[1733852038036,8.66104559,206.23,206.14,6.25843069]
[1733852038339,2.91136269,206.15,206.14,6.25843069]
[1733852038542,6.4495,206.3,206.19,15.0]
[1733852038711,6.4495,206.3,206.15,15.0]
[1733852038917,15.19106931,206.3,206.17,21.25843069]
[1733852039214,15.19106931,206.3,206.17,15.0]
[1733852039726,17.16963793,206.3,206.17,15.0]
[1733852040026,20.0,206.27,206.17,15.0]
[1733852040412,2.88900387,206.2,206.12,21.25843069]
[1733852040811,2.88900387,206.2,206.17,6.25843069]
[1733852041008,2.88900387,206.2,206.1,40.39801057]
[1733852041009,2.88900387,206.2,206.18,21.25843069]
[1733852041434,0.88718229,206.19,206.15,6.25843069]
[1733852041620,0.88718229,206.19,206.16,15.0]
[1733852041943,0.88718229,206.19,206.11,6.25843069]
[1733852042311,0.88718229,206.19,206.1,15.0]
[1733852042509,20.0,206.18,206.13,6.25843069]
[1733852042933,0.88718229,206.17,206.11,6.25843069]
[1733852043216,0.88718229,206.17,206.09,6.25843069]
[1733852043433,0.88718229,206.17,206.11,6.25843069]
[1733852043740,0.88718229,206.17,206.09,6.25843069]
[1733852044249,0.88718229,206.17,206.05,6.25843069]
[1733852044421,0.88718229,206.17,205.98,46.76241057]
[1733852044422,20.0,206.14,206.01,6.25843069]
[1733852044825,8.74156931,206.1,205.96,6.25843069]
[1733852045023,8.74156931,206.1,205.94,15.0]
[1733852045024,20.0,206.05,205.92,15.0]
[1733852045349,20.0,206.05,205.97,21.25843069]
[1733852045509,20.0,206.1,206.01,15.0]
[1733852046037,20.0,206.11,206.0,6.25843069]
[1733852046244,20.0,206.11,205.98,6.25843069]
[1733852046442,2.84313175,206.02,205.97,15.0]
[1733852046742,2.84313175,206.02,205.95,6.25843069]
[1733852046944,2.84313175,206.02,205.99,15.0]
[1733852047152,2.84313175,206.02,206.01,6.25843069]
[1733852047323,2.84313175,206.02,206.01,21.25843069]
[1733852048143,2.84313175,206.02,206.01,6.25843069]
[1733852048340,2.84313175,206.02,205.99,6.25843069]
[1733852048543,2.84313175,206.02,205.99,21.25843069]
[1733852048995,1.9739039,206.15,206.07,15.0]
[1733852049149,2.93672803,206.08,206.07,15.0]
[1733852049356,2.93672803,206.08,206.03,6.25843069]
[1733852049890,2.93672803,206.08,206.02,15.0]
[1733852050184,2.93672803,206.08,206.03,6.25843069]
[1733852051179,2.93672803,206.08,206.05,15.0]
[1733852051488,0.88718229,206.07,206.05,15.0]
[1733852051690,0.88718229,206.07,206.06,6.25843069]
[1733852053010,0.88718229,206.07,206.03,15.0]
[1733852053381,0.88718229,206.07,206.05,15.0]
[1733852053721,0.88718229,206.07,206.01,15.0]
[1733852054212,0.88718229,206.07,206.05,15.0]
[1733852055009,6.1141,206.27,206.14,15.0]
[1733852055204,2.86843835,206.15,206.12,15.0]
[1733852055505,3.75562064,206.15,206.12,15.0]
[1733852055703,0.88718229,206.15,206.14,15.0]
[1733852057079,2.87106032,206.19,206.18,15.0]
[1733852058201,3.75824261,206.19,206.18,15.0]
[1733852058405,0.88718229,206.19,206.18,15.0]
[1733852060033,0.88718229,206.19,206.13,15.0]
[1733852060323,0.88718229,206.19,206.02,28.9994]
[1733852060324,0.88718229,206.19,206.07,15.0]
[1733852060543,20.0,206.14,206.01,15.0]
[1733852060691,20.0,206.14,205.97,15.0]
[1733852060692,34.54,206.13,205.97,15.0]
[1733852060891,20.0,206.08,205.93,15.0]
[1733852061118,20.0,206.06,205.93,15.0]
[1733852061294,20.0,206.05,205.96,15.0]
[1733852061493,2.86617226,206.08,206.0,15.0]
[1733852061706,2.86617226,206.08,206.04,15.0]
[1733852061918,2.86617226,206.08,206.06,15.0]
[1733852062328,2.86617226,206.08,206.04,15.0]
[1733852062629,2.86617226,206.08,206.01,15.0]
[1733852063001,2.86617226,206.08,206.03,15.0]
[1733852063408,2.86617226,206.08,205.89,0.72808951]
[1733852063409,2.86617226,206.08,206.01,15.0]
[1733852063608,2.86617226,206.08,205.95,15.0]
[1733852063818,2.86617226,206.08,205.98,15.0]
[1733852064142,2.86617226,206.08,206.05,15.0]
[1733852064341,2.67508229,206.19,206.09,15.0]
[1733852064640,2.89216477,206.19,206.09,15.0]
[1733852064801,2.90396216,206.12,206.08,15.0]
[1733852065225,2.90396216,206.12,206.06,15.0]
[1733852065426,3.79114445,206.12,206.08,15.0]
[1733852065616,3.79114445,206.12,206.06,15.0]
[1733852065810,0.88718229,206.11,206.1,15.0]
[1733852066010,0.88718229,206.11,206.1,55.39801057]
[1733852066611,6.1141,206.31,206.22,15.0]
[1733852066830,0.88718229,206.3,206.22,15.0]
[1733852067034,0.88718229,206.3,206.2,15.0]
[1733852067232,2.84306229,206.23,206.2,15.0]
[1733852067431,0.88718229,206.22,206.2,15.0]
[1733852068528,0.88718229,206.22,206.09,15.0]
[1733852068839,2.89199779,206.22,206.1,15.0]
[1733852069039,0.88718229,206.22,206.13,15.0]
[1733852069246,0.88718229,206.22,206.15,15.0]
[1733852069418,20.0,206.21,206.13,15.0]
[1733852069732,0.88718229,206.2,206.13,15.0]
[1733852070711,0.88718229,206.2,206.17,15.0]
[1733852071042,0.88718229,206.2,206.15,15.0]
[1733852071342,0.88718229,206.2,206.13,15.0]
[1733852071505,0.88718229,206.2,206.15,15.0]
[1733852071903,0.88718229,206.2,206.09,15.0]
[1733852072118,20.88718229,206.2,206.09,15.0]
[1733852072430,20.88718229,206.2,206.06,15.0]
[1733852072431,35.88718229,206.2,206.06,15.0]
[1733852073710,0.88718229,206.2,206.11,15.0]
[1733852074735,0.88718229,206.2,206.15,15.0]
[1733852075321,0.88718229,206.2,206.13,15.0]
[1733852075637,0.88718229,206.2,206.15,15.0]
[1733852075812,2.94068827,206.17,206.15,15.0]
[1733852076010,0.88718229,206.16,206.15,15.0]
[1733852076724,0.88718229,206.16,206.11,15.0]
[1733852076925,0.88718229,206.16,206.07,15.0]
[1733852077208,0.88718229,206.16,206.03,15.0]
[1733852077417,0.88718229,206.16,206.06,15.0]
[1733852077808,20.0,206.15,206.08,15.0]
[1733852078046,0.88718229,206.14,206.08,15.0]
[1733852078337,0.88718229,206.14,206.1,15.0]
[1733852078713,0.88718229,206.14,206.08,15.0]
[1733852079114,0.88718229,206.14,206.06,15.0]
[1733852079515,20.0,206.13,206.02,15.0]
[1733852080235,0.88718229,206.12,206.02,15.0]
[1733852080433,20.0,206.11,206.02,15.0]
[1733852080634,0.88718229,206.1,206.02,15.0]
[1733852080840,0.88718229,206.1,206.04,15.0]
[1733852081022,0.88718229,206.1,206.06,15.0]
[1733852081222,0.88718229,206.1,206.09,15.0]
[1733852081822,2.94068827,206.17,206.09,15.0]
[1733852082022,20.0,206.15,206.02,15.0]
[1733852082220,0.88718229,206.14,206.02,15.0]
[1733852082438,20.0,206.1,206.0,15.0]
[1733852082652,0.88718229,206.09,206.0,15.0]
[1733852083435,0.88718229,206.09,206.02,15.0]
[1733852083650,0.88718229,206.09,206.0,15.0]
[1733852083829,20.0,206.08,206.0,15.0]
[1733852084028,20.88718229,206.08,206.0,15.0]
[1733852084221,0.88718229,206.07,205.93,6.5612]
[1733852084426,2.87433183,206.03,205.93,6.5612]
[1733852086448,2.87433183,206.03,205.86,1.8762]
[1733852086449,2.87433183,206.03,205.86,48.83541057]
[1733852086651,3.76151412,206.03,205.86,8.4374]
[1733852086954,20.0,206.01,205.86,6.5612]
[1733852087153,20.0,206.01,205.85,0.28516552]
[1733852087154,20.0,205.99,205.85,0.28516552]
[1733852087455,0.88718229,205.98,205.85,0.28516552]
[1733852087621,20.0,205.94,205.85,0.28516552]
[1733852087937,0.88718229,205.93,205.85,0.28516552]
[1733852088838,2.007411,205.99,205.86,40.39801057]
[1733852089151,2.02132651,206.0,205.85,0.28516552]
[1733852089456,2.87433183,206.03,205.85,0.28516552]
[1733852089641,0.88718229,206.02,205.85,0.28516552]
[1733852089946,0.88718229,206.02,205.86,40.39801057]
[1733852090160,0.88718229,206.02,205.85,0.28516552]
[1733852090746,0.42553192,206.01,205.85,0.28516552]
[1733852090966,1.31271421,206.01,205.85,0.28516552]
[1733852091841,0.93483448,205.85,205.83,41.12641908]
[1733852092046,0.93483448,205.85,205.78,40.39801057]
[1733852092250,0.93483448,205.85,205.69,54.8968919]
[1733852092251,0.42553192,205.84,205.71,14.0287]
[1733852092429,0.42553192,205.84,205.71,42.27421057]